[Event "Cerrado Blitz Quart 2018"]
[Site "Quart (Valencia), Spain"]
[Date "2018.08.30"]
[Round "7.4"]
[White "Kovacevic, Slobodan"]
[Black "Vega Gutierrez, Sabrina"]
[Result "1-0"]
[TimeControl "7 minutos +3s por jugada"]
[WhiteTitle "IM"]
[BlackTitle "IM"]
[WhiteFideId "902152"]
[BlackFideId "2219026"]
[WhiteElo "2418"]
[BlackElo "2188"]

1. d4 {[%clk 00:07:04]} {[%emt 00:00:02]} d6 {[%clk 00:07:05]} 2. Nf3 {[%clk
00:07:05]} {[%emt 00:00:02]} Nd7 {[%clk 00:07:02]} {[%emt 00:00:05]} 3. Bf4
{[%clk 00:07:06]} {[%emt 00:00:02]} g6 {[%clk 00:07:04]} {[%emt 00:00:02]} 4.
e3 {[%clk 00:07:08]} {[%emt 00:00:01]} Bg7 {[%clk 00:07:05]} {[%emt 00:00:01]}
5. c4 {[%clk 00:07:06]} {[%emt 00:00:06]} e5 {[%clk 00:07:03]} {[%emt
00:00:05]} 6. Bg5 {[%clk 00:07:06]} {[%emt 00:00:02]} f6 {[%clk 00:07:04]}
{[%emt 00:00:02]} 7. Bh4 {[%clk 00:07:08]} {[%emt 00:00:01]} Nh6 {[%clk
00:07:02]} {[%emt 00:00:05]} 8. Bd3 {[%clk 00:07:08]} {[%emt 00:00:04]} Qe7
{[%clk 00:07:00]} {[%emt 00:00:05]} 9. Nc3 {[%clk 00:07:02]} {[%emt 00:00:09]}
c6 {[%clk 00:06:59]} {[%emt 00:00:04]} 10. O-O {[%clk 00:07:02]} {[%emt
00:00:03]} O-O {[%clk 00:05:15]} {[%emt 00:01:46]} 11. h3 {[%clk 00:06:35]}
{[%emt 00:00:30]} g5 {[%clk 00:04:54]} {[%emt 00:00:24]} 12. Bg3 {[%clk
00:06:37]} {[%emt 00:00:02]} f5 {[%clk 00:04:56]} 13. Bc2 {[%clk 00:06:21]}
{[%emt 00:00:19]} f4 {[%clk 00:03:58]} {[%emt 00:01:01]} 14. exf4 {[%clk
00:06:18]} {[%emt 00:00:07]} exf4 {[%clk 00:03:53]} {[%emt 00:00:06]} 15. Bh2
{[%clk 00:06:16]} {[%emt 00:00:06]} Nf7 {[%clk 00:02:52]} {[%emt 00:01:04]} 16.
Re1 {[%clk 00:06:11]} {[%emt 00:00:08]} Qf6 {[%clk 00:02:46]} {[%emt 00:00:09]}
17. Qd3 {[%clk 00:05:58]} {[%emt 00:00:16]} Qh6 {[%clk 00:02:48]} {[%emt
00:00:01]} 18. Re7 {[%clk 00:05:45]} {[%emt 00:00:15]} Nf6 {[%clk 00:02:48]}
{[%emt 00:00:04]} 19. Ne4 {[%clk 00:05:22]} {[%emt 00:00:26]} Nxe4 {[%clk
00:02:31]} {[%emt 00:00:21]} 20. Qxe4 {[%clk 00:05:22]} {[%emt 00:00:03]} Bf6
{[%clk 00:02:31]} {[%emt 00:00:02]} 21. Re8 {[%clk 00:05:12]} {[%emt 00:00:13]}
Bd7 {[%clk 00:02:31]} {[%emt 00:00:03]} 22. Rxa8 {[%clk 00:04:57]} {[%emt
00:00:18]} Rxa8 {[%clk 00:02:33]} 23. Qd3 {[%clk 00:04:53]} {[%emt 00:00:06]}
Re8 {[%clk 00:02:33]} {[%emt 00:00:03]} 24. Re1 {[%clk 00:04:54]} {[%emt
00:00:02]} Rxe1+ {[%clk 00:02:24]} {[%emt 00:00:12]} 25. Nxe1 {[%clk 00:04:56]}
{[%emt 00:00:01]} Qg7 {[%clk 00:02:17]} {[%emt 00:00:09]} 26. Nf3 {[%clk
00:04:55]} {[%emt 00:00:05]} Nh6 {[%clk 00:02:16]} {[%emt 00:00:04]} 27. Qa3
{[%clk 00:04:49]} {[%emt 00:00:10]} Bxd4 {[%clk 00:02:00]} {[%emt 00:00:19]} 28.
Qxd6 {[%clk 00:04:42]} {[%emt 00:00:10]} Bxb2 {[%clk 00:01:30]} {[%emt
00:00:32]} 29. Qb8+ {[%clk 00:04:00]} {[%emt 00:00:46]} Kf7 {[%clk 00:00:28]}
{[%emt 00:01:04]} 30. Qxb7 {[%clk 00:03:57]} {[%emt 00:00:06]} Ke7 {[%clk
00:00:30]} 31. Qb4+ {[%clk 00:03:44]} {[%emt 00:00:15]} Ke8 {[%clk 00:00:27]}
{[%emt 00:00:06]} 32. Bxh7 {[%clk 00:03:04]} {[%emt 00:00:44]} Ba3 {[%clk
00:00:06]} {[%emt 00:00:24]} 33. Qe1+ {[%clk 00:03:00]} {[%emt 00:00:07]} Be7
{[%clk 00:00:05]} {[%emt 00:00:04]} 34. Be4 {[%clk 00:02:58]} {[%emt 00:00:05]}
g4 {[%clk 00:00:06]} {[%emt 00:00:02]} 35. hxg4 {[%clk 00:02:59]} {[%emt
00:00:02]} Qxg4 {[%clk 00:00:06]} {[%emt 00:00:03]} 36. Qd2 {[%clk 00:02:53]}
{[%emt 00:00:08]} Qe6 {[%clk 00:00:04]} {[%emt 00:00:05]} 37. Qxf4 {[%clk
00:02:52]} {[%emt 00:00:04]} Qxc4 {[%clk 00:00:06]} {[%emt 00:00:02]} 38. Bg6+
{[%emt 00:00:03]} 1-0

[Event "Cerrado Blitz Quart 2018"]
[Site "Quart (Valencia), Spain"]
[Date "2018.08.30"]
[Round "7.5"]
[White "Lara Lopez, Sergio"]
[Black "Galvan Cipriani, Viviana"]
[Result "1/2-1/2"]
[TimeControl "7 minutos +3s por jugada"]
[BlackTitle "WFM"]
[WhiteFideId "2268400"]
[BlackFideId "32041144"]
[WhiteElo "2165"]
[BlackElo "1948"]

1. e4 {[%clk 00:07:04]} {[%emt 00:00:02]} c5 {[%clk 00:07:05]} {[%emt
00:00:02]} 2. Nc3 {[%clk 00:07:06]} {[%emt 00:00:01]} Nc6 {[%clk 00:07:06]}
{[%emt 00:00:02]} 3. g3 {[%clk 00:07:08]} {[%emt 00:00:01]} g6 {[%clk
00:07:06]} {[%emt 00:00:03]} 4. Bg2 {[%clk 00:07:03]} {[%emt 00:00:08]} Bg7
{[%clk 00:07:07]} {[%emt 00:00:02]} 5. d3 {[%clk 00:07:05]} {[%emt 00:00:01]}
d6 {[%clk 00:07:01]} {[%emt 00:00:10]} 6. Be3 {[%clk 00:07:05]} {[%emt
00:00:03]} Rb8 {[%clk 00:07:02]} {[%emt 00:00:02]} 7. Qd2 {[%clk 00:07:06]}
{[%emt 00:00:02]} b5 {[%clk 00:07:02]} {[%emt 00:00:03]} 8. h4 {[%clk
00:07:07]} {[%emt 00:00:02]} b4 {[%clk 00:07:01]} {[%emt 00:00:04]} 9. Nd1
{[%clk 00:07:09]} {[%emt 00:00:01]} h5 {[%clk 00:06:59]} {[%emt 00:00:04]} 10.
Ne2 {[%clk 00:07:06]} {[%emt 00:00:06]} Nd4 {[%clk 00:06:55]} {[%emt 00:00:07]}
11. Nc1 {[%clk 00:07:06]} {[%emt 00:00:04]} e6 {[%clk 00:06:46]} {[%emt
00:00:12]} 12. c3 {[%clk 00:07:06]} {[%emt 00:00:03]} bxc3 {[%clk 00:06:47]}
{[%emt 00:00:02]} 13. bxc3 {[%clk 00:07:08]} Nc6 {[%clk 00:06:41]} {[%emt
00:00:09]} 14. Ne2 {[%clk 00:07:08]} {[%emt 00:00:03]} Nge7 {[%clk 00:06:14]}
{[%emt 00:00:30]} 15. O-O {[%clk 00:07:07]} {[%emt 00:00:04]} O-O {[%clk
00:06:12]} {[%emt 00:00:05]} 16. Bh6 {[%clk 00:07:07]} {[%emt 00:00:03]} a5
{[%clk 00:06:07]} {[%emt 00:00:08]} 17. Bxg7 {[%clk 00:07:07]} {[%emt
00:00:03]} Kxg7 {[%clk 00:06:08]} {[%emt 00:00:02]} 18. Ne3 {[%clk 00:07:05]}
{[%emt 00:00:05]} Qb6 {[%clk 00:06:03]} {[%emt 00:00:09]} 19. Nc4 {[%clk
00:06:53]} {[%emt 00:00:16]} Qc7 {[%clk 00:06:04]} {[%emt 00:00:02]} 20. f4
{[%clk 00:06:31]} {[%emt 00:00:24]} f5 {[%clk 00:05:31]} {[%emt 00:00:36]} 21.
Rad1 {[%clk 00:05:41]} {[%emt 00:00:54]} d5 {[%clk 00:05:04]} {[%emt 00:00:29]}
22. Ne3 {[%clk 00:05:29]} {[%emt 00:00:15]} Rd8 {[%clk 00:04:20]} {[%emt
00:00:47]} 23. Qc2 {[%clk 00:05:25]} {[%emt 00:00:08]} Ba6 {[%clk 00:04:11]}
{[%emt 00:00:12]} 24. Kh1 {[%clk 00:05:09]} {[%emt 00:00:19]} Qd7 {[%clk
00:03:15]} {[%emt 00:00:59]} 25. exd5 {[%clk 00:04:22]} {[%emt 00:00:50]} exd5
{[%clk 00:03:15]} {[%emt 00:00:03]} 26. d4 {[%clk 00:04:16]} {[%emt 00:00:08]}
cxd4 {[%clk 00:03:02]} {[%emt 00:00:16]} 27. Nxd4 {[%clk 00:03:55]} {[%emt
00:00:24]} Nxd4 {[%clk 00:02:31]} {[%emt 00:00:34]} 28. Rxd4 {[%clk 00:03:56]}
{[%emt 00:00:03]} Bxf1 {[%clk 00:02:31]} {[%emt 00:00:02]} 29. Bxf1 {[%clk
00:03:58]} {[%emt 00:00:01]} Qe6 {[%clk 00:02:19]} {[%emt 00:00:16]} 30. Qd3
{[%clk 00:03:48]} {[%emt 00:00:13]} Rb2 {[%clk 00:01:38]} {[%emt 00:00:43]} 31.
Bg2 {[%clk 00:03:46]} {[%emt 00:00:05]} Rxa2 {[%clk 00:01:15]} {[%emt
00:00:26]} 32. c4 {[%clk 00:02:48]} {[%emt 00:01:02]} dxc4 {[%clk 00:01:03]}
{[%emt 00:00:16]} 33. Nxc4 {[%clk 00:02:49]} {[%emt 00:00:02]} Rxd4 {[%clk
00:00:56]} {[%emt 00:00:10]} 34. Qxd4+ {[%clk 00:02:51]} Qf6 {[%clk 00:00:26]}
{[%emt 00:00:33]} 35. Ne5 {[%clk 00:02:53]} Rc2 {[%clk 00:00:18]} {[%emt
00:00:11]} 36. Qd7 {[%clk 00:02:33]} {[%emt 00:00:24]} Rc1+ {[%clk 00:00:13]}
{[%emt 00:00:08]} 37. Kh2 {[%clk 00:02:35]} Rc2 {[%clk 00:00:14]} {[%emt
00:00:03]} 38. Kh3 {[%clk 00:02:33]} {[%emt 00:00:04]} a4 {[%clk 00:00:12]}
{[%emt 00:00:05]} 39. Qxa4 {[%clk 00:02:33]} {[%emt 00:00:03]} Rb2 {[%clk
00:00:12]} {[%emt 00:00:03]} 40. Qd7 {[%clk 00:02:30]} {[%emt 00:00:06]} Rc2
{[%clk 00:00:12]} {[%emt 00:00:02]} 41. Qe8 {[%clk 00:02:30]} {[%emt 00:00:04]}
Ng8 {[%clk 00:00:10]} {[%emt 00:00:05]} 42. Bd5 {[%clk 00:02:23]} {[%emt
00:00:11]} Ne7 {[%clk 00:00:10]} {[%emt 00:00:03]} 43. Qd7 {[%clk 00:01:49]}
{[%emt 00:00:37]} Kh6 {[%clk 00:00:07]} {[%emt 00:00:05]} 44. Nf7+ {[%clk
00:01:44]} {[%emt 00:00:09]} Kg7 {[%clk 00:00:08]} {[%emt 00:00:02]} 45. Ng5
{[%clk 00:01:45]} {[%emt 00:00:01]} Kh6 {[%clk 00:00:09]} {[%emt 00:00:02]} 46.
Qb7 {[%clk 00:01:14]} {[%emt 00:00:35]} Qb2 {[%clk 00:00:05]} {[%emt 00:00:07]}
47. Bg2 {[%clk 00:00:48]} {[%emt 00:00:29]} Qxb7 {[%clk 00:00:07]} {[%emt
00:00:02]} 48. Bxb7 {[%clk 00:00:50]} Kg7 {[%clk 00:00:07]} {[%emt 00:00:03]}
49. Bf3 {[%clk 00:00:43]} {[%emt 00:00:10]} Ng8 {[%clk 00:00:07]} {[%emt
00:00:03]} 50. Bd1 {[%clk 00:00:44]} {[%emt 00:00:01]} Rb2 {[%clk 00:00:09]}
{[%emt 00:00:02]} 51. Nf3 {[%clk 00:00:32]} {[%emt 00:00:15]} Nf6 {[%clk
00:00:10]} {[%emt 00:00:02]} 52. Ne1 {[%clk 00:00:14]} {[%emt 00:00:21]} Ne4
{[%clk 00:00:09]} {[%emt 00:00:04]} 53. Bf3 {[%clk 00:00:10]} {[%emt 00:00:06]}
Nf2+ {[%clk 00:00:06]} {[%emt 00:00:06]} 54. Kg2 {[%clk 00:00:13]} Nd3+ {[%clk
00:00:07]} {[%emt 00:00:03]} 55. Kf1 {[%clk 00:00:14]} {[%emt 00:00:02]} Rf2+
{[%clk 00:00:08]} {[%emt 00:00:02]} 56. Kg1 {[%clk 00:00:14]} {[%emt 00:00:03]}
Rd2 {[%clk 00:00:10]} {[%emt 00:00:01]} 57. Nxd3 {[%clk 00:00:15]} {[%emt
00:00:03]} Rxd3 {[%clk 00:00:11]} 58. Kf2 {[%clk 00:00:18]} Kf6 {[%clk
00:00:13]} {[%emt 00:00:03]} 59. Ke2 {[%clk 00:00:19]} {[%emt 00:00:01]}
1/2-1/2

[Event "Cerrado Blitz Quart 2018"]
[Site "Quart (Valencia), Spain"]
[Date "2018.08.30"]
[Round "8.1"]
[White "Pena Riasco, Alexander"]
[Black "Galvan Cipriani, Viviana"]
[Result "0-1"]
[TimeControl "7 minutos +3s por jugada"]
[WhiteTitle "FM"]
[BlackTitle "WFM"]
[WhiteFideId "4403339"]
[BlackFideId "32041144"]
[WhiteElo "2119"]
[BlackElo "1948"]

1. d4 {[%clk 00:07:06]} c5 {[%clk 00:07:05]} {[%emt 00:00:18]} 2. d5 {[%clk
00:07:08]} e6 {[%clk 00:07:06]} 3. c4 {[%clk 00:07:09]} {[%emt 00:00:07]} exd5
{[%clk 00:07:07]} 4. cxd5 {[%clk 00:07:12]} d6 {[%clk 00:07:09]} 5. e4 {[%clk
00:07:12]} Nf6 {[%clk 00:07:10]} 6. Nc3 {[%clk 00:07:08]} g6 {[%clk 00:07:12]}
{[%emt 00:00:05]} 7. Bb5+ {[%clk 00:07:10]} Bd7 {[%clk 00:07:06]} {[%emt
00:00:03]} 8. a4 {[%clk 00:07:12]} a6 {[%clk 00:07:06]} {[%emt 00:00:04]} 9.
Bd3 {[%clk 00:07:13]} {[%emt 00:00:04]} Bg7 {[%clk 00:07:07]} 10. f4 {[%clk
00:07:15]} O-O {[%clk 00:07:05]} {[%emt 00:00:18]} 11. Nf3 {[%clk 00:07:15]}
Bg4 {[%clk 00:07:05]} 12. h3 {[%clk 00:07:14]} Bxf3 {[%clk 00:07:05]} 13. Qxf3
{[%clk 00:07:16]} {[%emt 00:00:03]} Re8 {[%clk 00:07:05]} 14. O-O {[%clk
00:07:17]} {[%emt 00:00:04]} Nbd7 {[%clk 00:07:06]} {[%emt 00:00:07]} 15. a5
{[%clk 00:06:54]} {[%emt 00:00:21]} Rb8 {[%clk 00:07:06]} {[%emt 00:00:04]} 16.
Ra4 {[%clk 00:05:02]} {[%emt 00:01:50]} Qc7 {[%clk 00:07:02]} {[%emt 00:00:23]}
17. Nd1 {[%clk 00:04:21]} {[%emt 00:00:28]} b5 {[%clk 00:05:45]} {[%emt
00:01:20]} 18. axb6 {[%clk 00:04:22]} {[%emt 00:00:06]} Rxb6 {[%clk 00:05:46]}
{[%emt 00:00:03]} 19. Nc3 {[%clk 00:04:02]} {[%emt 00:00:18]} Nb8 {[%clk
00:05:35]} {[%emt 00:00:16]} 20. Kh1 {[%clk 00:03:12]} {[%emt 00:01:10]} Nfd7
{[%clk 00:05:08]} {[%emt 00:00:15]} 21. g4 {[%clk 00:02:33]} {[%emt 00:00:38]}
Rb4 {[%clk 00:04:33]} {[%emt 00:00:37]} 22. Ra3 {[%clk 00:02:09]} {[%emt
00:00:27]} c4 {[%clk 00:04:07]} {[%emt 00:00:50]} 23. Bc2 {[%clk 00:02:11]} Nc5
{[%clk 00:04:02]} {[%emt 00:00:07]} 24. Kg2 {[%clk 00:01:34]} {[%emt 00:00:22]}
Nbd7 {[%clk 00:03:21]} {[%emt 00:00:44]} 25. g5 {[%clk 00:01:22]} {[%emt
00:00:17]} Nb3 {[%clk 00:03:06]} {[%emt 00:00:16]} 26. Bxb3 {[%clk 00:01:16]}
{[%emt 00:00:14]} cxb3 {[%clk 00:03:06]} 27. Bd2 {[%clk 00:01:12]} {[%emt
00:00:14]} Nc5 {[%clk 00:02:47]} {[%emt 00:00:13]} 28. Re1 {[%clk 00:00:52]}
{[%emt 00:00:33]} Qb7 {[%clk 00:01:15]} {[%emt 00:01:27]} 29. Re2 {[%clk
00:00:35]} {[%emt 00:00:18]} Rd4 {[%clk 00:01:08]} {[%emt 00:00:15]} 30. Ra1
{[%clk 00:00:19]} {[%emt 00:00:15]} Rd3 {[%clk 00:00:47]} {[%emt 00:00:23]} 31.
Qf1 {[%clk 00:00:06]} {[%emt 00:00:18]} Qb6 {[%clk 00:00:07]} {[%emt 00:00:43]}
32. Rae1 {[%clk 00:00:07]} {[%emt 00:00:03]} Qb7 {[%clk 00:00:08]} {[%emt
00:00:06]} 33. Qf2 {[%clk 00:00:07]} a5 {[%clk 00:00:10]} 34. Be3 {[%clk
00:00:06]} {[%emt 00:00:07]} Bxc3 {[%clk 00:00:09]} {[%emt 00:00:04]} 35. bxc3
{[%clk 00:00:06]} {[%emt 00:00:03]} Rxc3 {[%clk 00:00:11]} 36. e5 {[%clk
00:00:07]} dxe5 {[%clk 00:00:12]} {[%emt 00:00:07]} 37. fxe5 {[%clk 00:00:08]}
{[%emt 00:00:04]} Nd3 {[%clk 00:00:13]} 38. Qf3 {[%clk 00:00:05]} {[%emt
00:00:03]} Nxe1+ {[%clk 00:00:14]} 39. Rxe1 {[%clk 00:00:08]} {[%emt 00:00:05]}
Rxe5 {[%clk 00:00:11]} {[%emt 00:00:04]} 40. Bd4 {[%clk 00:00:08]} {[%emt
00:00:07]} Rxf3 {[%clk 00:00:11]} 41. Bc5 {[%emt 00:00:07]} 0-1

[Event "Cerrado Blitz Quart 2018"]
[Site "Quart (Valencia), Spain"]
[Date "2018.08.30"]
[Round "8.2"]
[White "Vega Gutierrez, Sabrina"]
[Black "Lara Lopez, Sergio"]
[Result "0-1"]
[TimeControl "7 minutos +3s por jugada"]
[WhiteTitle "IM"]
[WhiteFideId "2219026"]
[BlackFideId "2268400"]
[WhiteElo "2188"]
[BlackElo "2165"]

1. e4 {[%clk 00:07:04]} {[%emt 00:00:07]} e6 {[%clk 00:07:05]} {[%emt
00:00:14]} 2. d3 {[%clk 00:07:02]} c5 {[%clk 00:07:03]} {[%emt 00:00:09]} 3. g3
{[%clk 00:07:04]} Nc6 {[%clk 00:07:04]} 4. Bg2 {[%clk 00:07:05]} Be7 {[%clk
00:07:02]} 5. f4 {[%clk 00:07:03]} {[%emt 00:00:04]} d5 {[%clk 00:07:01]}
{[%emt 00:00:04]} 6. e5 {[%clk 00:07:02]} {[%emt 00:00:04]} f6 {[%clk
00:06:57]} {[%emt 00:00:10]} 7. Nf3 {[%clk 00:06:50]} {[%emt 00:00:09]} Nh6
{[%clk 00:06:44]} {[%emt 00:00:20]} 8. O-O {[%clk 00:06:39]} {[%emt 00:00:07]}
O-O {[%clk 00:06:38]} {[%emt 00:00:35]} 9. c3 {[%clk 00:06:21]} {[%emt
00:00:03]} Qc7 {[%clk 00:06:08]} {[%emt 00:00:25]} 10. Qe2 {[%clk 00:06:22]}
{[%emt 00:00:36]} b6 {[%clk 00:05:58]} {[%emt 00:00:04]} 11. Na3 {[%clk
00:06:23]} a6 {[%clk 00:05:51]} 12. Nc2 {[%clk 00:06:23]} a5 {[%clk 00:05:40]}
{[%emt 00:00:09]} 13. Re1 {[%clk 00:06:15]} {[%emt 00:00:07]} Ba6 {[%clk
00:05:38]} {[%emt 00:00:11]} 14. exf6 {[%clk 00:05:04]} {[%emt 00:01:07]} Rxf6
{[%clk 00:05:38]} {[%emt 00:00:37]} 15. Bh3 {[%clk 00:04:52]} {[%emt 00:00:03]}
Nd8 {[%clk 00:05:04]} {[%emt 00:00:18]} 16. g4 {[%clk 00:04:22]} {[%emt
00:00:30]} Rxf4 {[%clk 00:04:39]} {[%emt 00:00:29]} 17. Bxf4 {[%clk 00:04:09]}
{[%emt 00:00:35]} Qxf4 {[%clk 00:04:40]} 18. Qe3 {[%clk 00:02:54]} {[%emt
00:01:04]} Bd6 {[%clk 00:03:54]} {[%emt 00:00:49]} 19. Qxf4 {[%clk 00:02:35]}
{[%emt 00:00:19]} Bxf4 {[%clk 00:03:55]} {[%emt 00:00:40]} 20. d4 {[%clk
00:02:28]} Bd3 {[%clk 00:03:52]} {[%emt 00:00:07]} 21. Ne3 {[%clk 00:02:24]}
Be4 {[%clk 00:03:26]} {[%emt 00:00:38]} 22. Nd2 {[%clk 00:02:25]} cxd4 {[%clk
00:03:24]} {[%emt 00:00:03]} 23. cxd4 {[%clk 00:02:25]} Bg6 {[%clk 00:03:16]}
24. Rac1 {[%clk 00:02:17]} {[%emt 00:00:03]} Nhf7 {[%clk 00:03:06]} {[%emt
00:00:12]} 25. Bg2 {[%clk 00:01:50]} {[%emt 00:00:28]} Rb8 {[%clk 00:02:46]}
{[%emt 00:00:23]} 26. Ndf1 {[%clk 00:01:49]} {[%emt 00:00:05]} Nd6 {[%clk
00:02:46]} {[%emt 00:00:06]} 27. h4 {[%clk 00:01:24]} {[%emt 00:00:24]} Bd3
{[%clk 00:02:11]} {[%emt 00:00:37]} 28. Rcd1 {[%clk 00:01:14]} {[%emt
00:00:29]} Ba6 {[%clk 00:02:02]} {[%emt 00:00:08]} 29. Bf3 {[%clk 00:01:09]} g6
{[%clk 00:01:26]} {[%emt 00:00:33]} 30. Ng2 {[%clk 00:01:09]} {[%emt 00:01:20]}
Bh6 {[%clk 00:01:29]} 31. g5 {[%clk 00:01:04]} Bg7 {[%clk 00:01:31]} 32. Nf4
{[%clk 00:01:06]} Nf5 {[%clk 00:01:31]} 33. Nxe6 {[%clk 00:00:59]} Nxe6 {[%clk
00:01:27]} 34. Rxe6 {[%clk 00:01:00]} Nxd4 {[%clk 00:01:29]} 35. Re3 {[%clk
00:00:38]} Nxf3+ {[%clk 00:01:30]} 36. Rxf3 {[%clk 00:00:40]} Be2 {[%clk
00:01:33]} 37. Rfd3 {[%clk 00:00:34]} Bxd1 {[%clk 00:01:35]} 38. Rxd1 {[%clk
00:00:36]} d4 {[%clk 00:01:36]} {[%emt 00:00:10]} 39. Nd2 {[%clk 00:00:26]}
{[%emt 00:00:04]} Rc8 {[%clk 00:01:33]} {[%emt 00:00:07]} 40. Nf3 {[%clk
00:00:17]} {[%emt 00:00:11]} Rc2 {[%clk 00:01:21]} {[%emt 00:00:12]} 41. Rd2
{[%clk 00:00:14]} {[%emt 00:00:32]} Rxd2 {[%clk 00:01:12]} {[%emt 00:00:04]} 42.
Nxd2 {[%clk 00:00:16]} Kf7 {[%clk 00:01:14]} 43. Nc4 {[%clk 00:00:17]} Ke6
{[%emt 00:00:04]} 44. Nxb6 {[%clk 00:00:16]} {[%emt 00:00:04]} d3 {[%clk
00:00:49]} {[%emt 00:00:14]} 45. Nc4 {[%clk 00:00:12]} {[%emt 00:00:42]} Kd5
{[%clk 00:00:50]} 46. b3 {[%clk 00:00:14]} Kd4 {[%clk 00:00:42]} {[%emt
00:00:04]} 47. Kf1 {[%clk 00:00:16]} Kc3 {[%clk 00:00:32]} 48. Ke1 {[%clk
00:00:17]} Kc2 {[%clk 00:00:28]} {[%emt 00:00:04]} 49. Ne3+ {[%clk 00:01:12]}
{[%emt 00:00:05]} Kc1 {[%clk 00:00:29]} {[%emt 00:01:11]} 50. Nd1 {[%clk
00:00:41]} {[%emt 00:00:15]} Be5 {[%clk 00:00:30]} {[%emt 00:00:29]} 0-1

[Event "Cerrado Blitz Quart 2018"]
[Site "Quart (Valencia), Spain"]
[Date "2018.08.30"]
[Round "8.3"]
[White "Galvan, Jesus"]
[Black "Kovacevic, Slobodan"]
[Result "0-1"]
[TimeControl "7 minutos +3s por jugada"]
[WhiteTitle "FM"]
[BlackTitle "IM"]
[WhiteFideId "3800458"]
[BlackFideId "902152"]
[WhiteElo "2225"]
[BlackElo "2418"]

1. d4 {[%clk 00:07:04]} {[%emt 00:00:01]} Nf6 {[%clk 00:07:05]} {[%emt
00:00:02]} 2. c4 {[%clk 00:07:05]} {[%emt 00:00:01]} e6 {[%clk 00:07:07]}
{[%emt 00:00:02]} 3. Nc3 {[%clk 00:07:07]} c5 {[%clk 00:07:09]} 4. d5 {[%clk
00:07:09]} {[%emt 00:00:02]} d6 {[%clk 00:07:10]} {[%emt 00:00:03]} 5. e4
{[%clk 00:07:08]} {[%emt 00:00:03]} exd5 {[%clk 00:07:09]} {[%emt 00:00:04]} 6.
cxd5 {[%clk 00:07:08]} {[%emt 00:00:02]} g6 {[%clk 00:07:10]} {[%emt 00:00:02]}
7. f4 {[%clk 00:07:10]} {[%emt 00:00:02]} Bg7 {[%clk 00:07:12]} 8. Bb5+ {[%clk
00:07:12]} {[%emt 00:00:01]} Nfd7 {[%clk 00:07:14]} {[%emt 00:00:01]} 9. a4
{[%clk 00:07:14]} a6 {[%clk 00:07:14]} {[%emt 00:00:03]} 10. Bd3 {[%clk
00:06:15]} {[%emt 00:01:00]} O-O {[%clk 00:07:15]} {[%emt 00:00:03]} 11. Nf3
{[%clk 00:06:17]} Nf6 {[%clk 00:07:16]} {[%emt 00:00:02]} 12. h3 {[%clk
00:06:02]} {[%emt 00:00:18]} Re8 {[%clk 00:07:09]} {[%emt 00:00:11]} 13. O-O
{[%clk 00:06:02]} {[%emt 00:00:02]} c4 {[%clk 00:07:09]} {[%emt 00:00:03]} 14.
Bc2 {[%clk 00:05:59]} {[%emt 00:00:05]} Nbd7 {[%clk 00:07:12]} {[%emt
00:00:02]} 15. Re1 {[%clk 00:05:52]} {[%emt 00:00:10]} Qc7 {[%clk 00:06:43]}
{[%emt 00:00:32]} 16. Be3 {[%clk 00:05:38]} {[%emt 00:00:16]} Rb8 {[%clk
00:06:18]} {[%emt 00:00:28]} 17. a5 {[%clk 00:05:40]} b5 {[%clk 00:06:19]}
{[%emt 00:00:02]} 18. axb6 {[%clk 00:05:42]} {[%emt 00:00:01]} Nxb6 {[%clk
00:06:21]} 19. e5 {[%clk 00:05:04]} {[%emt 00:00:41]} Nfd7 {[%clk 00:06:23]} 20.
e6 {[%clk 00:04:40]} {[%emt 00:00:27]} fxe6 {[%clk 00:06:03]} {[%emt 00:00:23]}
21. dxe6 {[%clk 00:04:28]} {[%emt 00:00:14]} Rxe6 {[%clk 00:06:05]} {[%emt
00:00:02]} 22. Nd5 {[%clk 00:02:59]} {[%emt 00:01:32]} Nxd5 {[%clk 00:05:57]}
{[%emt 00:00:11]} 23. Qxd5 {[%clk 00:03:01]} Nf6 {[%clk 00:05:55]} {[%emt
00:00:05]} 24. Qd2 {[%clk 00:02:43]} {[%emt 00:00:21]} Rxb2 {[%clk 00:05:52]}
{[%emt 00:00:07]} 25. Bd4 {[%clk 00:02:09]} {[%emt 00:00:37]} Rb8 {[%clk
00:04:57]} {[%emt 00:00:58]} 26. Ng5 {[%clk 00:02:00]} {[%emt 00:00:12]} Rxe1+
{[%clk 00:04:38]} {[%emt 00:00:22]} 27. Rxe1 {[%clk 00:02:01]} Bb7 {[%clk
00:03:17]} {[%emt 00:01:24]} 28. Ne6 {[%clk 00:01:46]} {[%emt 00:00:18]} Qf7
{[%clk 00:03:15]} {[%emt 00:00:05]} 29. Nxg7 {[%clk 00:01:04]} {[%emt
00:00:46]} Kxg7 {[%clk 00:03:10]} {[%emt 00:00:08]} 30. Qc3 {[%clk 00:01:04]}
{[%emt 00:00:02]} Rf8 {[%clk 00:03:09]} {[%emt 00:00:04]} 31. f5 {[%clk
00:00:42]} {[%emt 00:00:26]} gxf5 {[%clk 00:02:59]} {[%emt 00:00:12]} 32. Bxf5
{[%clk 00:00:27]} {[%emt 00:00:18]} Bd5 {[%clk 00:02:49]} {[%emt 00:00:12]} 33.
Qg3+ {[%clk 00:00:15]} {[%emt 00:00:15]} Kh8 {[%clk 00:02:48]} {[%emt
00:00:04]} 34. Qxd6 {[%clk 00:00:17]} Qg7 {[%clk 00:02:27]} {[%emt 00:00:25]}
35. g4 {[%clk 00:00:10]} {[%emt 00:00:10]} Bg8 {[%clk 00:01:28]} {[%emt
00:01:02]} 36. Kh2 {[%emt 00:00:08]} h5 {[%emt 00:00:08]} 37. Re7 {[%clk
00:00:06]} {[%emt 00:00:01]} Qh6 {[%clk 00:01:23]} {[%emt 00:00:04]} 38. Re2
{[%clk 00:00:07]} {[%emt 00:00:02]} hxg4 {[%clk 00:01:22]} {[%emt 00:00:04]} 39.
Bxg4 {[%clk 00:00:07]} {[%emt 00:00:02]} Kh7 {[%clk 00:01:19]} {[%emt
00:00:06]} 40. Re7+ {[%clk 00:00:09]} Kh8 {[%clk 00:01:22]} 41. Qe5 {[%clk
00:00:08]} {[%emt 00:00:04]} c3 {[%clk 00:01:16]} {[%emt 00:00:09]} 42. Bxc3
{[%clk 00:00:11]} a5 {[%clk 00:01:06]} {[%emt 00:00:12]} 43. Ra7 {[%clk
00:00:11]} {[%emt 00:00:02]} a4 {[%clk 00:01:05]} {[%emt 00:00:04]} 44. Kg3
{[%clk 00:00:11]} {[%emt 00:00:03]} Bb3 {[%clk 00:01:02]} {[%emt 00:00:06]} 45.
Qe7 {[%clk 00:00:09]} {[%emt 00:00:05]} Kg8 {[%clk 00:00:47]} {[%emt 00:00:18]}
46. Ra6 {[%clk 00:00:04]} {[%emt 00:00:08]} Ne4+ {[%clk 00:00:26]} {[%emt
00:00:25]} 47. Kg2 {[%clk 00:00:07]} Qh7 {[%clk 00:00:18]} {[%emt 00:00:10]} 48.
Be6+ {[%emt 00:00:06]} {Bandera} 0-1